[Event "Late-Titled-Tuesday-Blitz-April-23-2024"]
[Site "Chess.com"]
[Date "2024.04.23"]
[Round "4"]
[White "Andrei_Skvortsov"]
[Black "Smiechu"]
[Result "1-0"]
[WhiteElo "2742"]
[BlackElo "2438"]
[TimeControl "180+1"]
[EndTime "14:39:11 PDT"]
[Termination "Andrei_Skvortsov won by resignation"]

1. d4 {[%clk 0:03:00.9]} 1... Nf6 {[%clk 0:02:59.4]} 2. Nf3 {[%clk 0:03:00.1]}
2... c5 {[%clk 0:02:59.3]} 3. Nc3 {[%clk 0:02:54.4]} 3... cxd4 {[%clk
0:02:58.4]} 4. Qxd4 {[%clk 0:02:55]} 4... Nc6 {[%clk 0:02:58.3]} 5. Qd3 {[%clk
0:02:54.8]} 5... g6 {[%clk 0:02:58.6]} 6. e4 {[%clk 0:02:54.4]} 6... Bg7 {[%clk
0:02:56.1]} 7. Be2 {[%clk 0:02:54]} 7... O-O {[%clk 0:02:55.9]} 8. O-O {[%clk
0:02:54.4]} 8... d6 {[%clk 0:02:52.4]} 9. Nd5 {[%clk 0:02:54.9]} 9... Bg4 {[%clk
0:02:49.3]} 10. c3 {[%clk 0:02:54.7]} 10... Rc8 {[%clk 0:02:45]} 11. Bg5 {[%clk
0:02:53.6]} 11... Bxf3 {[%clk 0:02:38.8]} 12. Qxf3 {[%clk 0:02:52.5]} 12... Ne5
{[%clk 0:02:38.2]} 13. Qe3 {[%clk 0:02:52]} 13... e6 {[%clk 0:02:35.9]} 14.
Nxf6+ {[%clk 0:02:51.7]} 14... Bxf6 {[%clk 0:02:35.8]} 15. Bh6 {[%clk
0:02:49.2]} 15... Bg7 {[%clk 0:02:35.4]} 16. Bxg7 {[%clk 0:02:48.3]} 16... Kxg7
{[%clk 0:02:36.3]} 17. Qxa7 {[%clk 0:02:48.3]} 17... b6 {[%clk 0:02:04.3]} 18.
Qa4 {[%clk 0:02:45.3]} 18... Rc5 {[%clk 0:01:50.5]} 19. Rfd1 {[%clk 0:02:41.4]}
19... Qe7 {[%clk 0:01:48.4]} 20. Qd4 {[%clk 0:02:38.5]} 20... Qg5 {[%clk
0:01:33.2]} 21. g3 {[%clk 0:02:10.8]} 21... Qf6 {[%clk 0:00:57.7]} 22. f4 {[%clk
0:02:10.7]} 22... Nc4 {[%clk 0:00:55.2]} 23. Bxc4 {[%clk 0:02:03.5]} 23... Qxd4+
{[%clk 0:00:50.9]} 24. Rxd4 {[%clk 0:02:03.9]} 24... e5 {[%clk 0:00:51.3]} 25.
Rxd6 {[%clk 0:01:42.3]} 25... Rxc4 {[%clk 0:00:50.6]} 26. fxe5 {[%clk
0:01:42.7]} 26... Rxe4 {[%clk 0:00:46]} 27. Rf1 {[%clk 0:01:35.4]} 27... Rxe5
{[%clk 0:00:41.1]} 28. Rxb6 {[%clk 0:01:34.4]} 28... Re2 {[%clk 0:00:41.1]} 29.
Rf2 {[%clk 0:01:34.6]} 29... Re1+ {[%clk 0:00:39.1]} 30. Kg2 {[%clk 0:01:34.5]}
30... h5 {[%clk 0:00:39.6]} 31. h4 {[%clk 0:01:30.4]} 31... f6 {[%clk
0:00:31.1]} 32. a4 {[%clk 0:01:27.9]} 32... g5 {[%clk 0:00:30.7]} 33. hxg5
{[%clk 0:01:26.4]} 33... fxg5 {[%clk 0:00:31]} 34. Rxf8 {[%clk 0:01:26.9]} 34...
Kxf8 {[%clk 0:00:31.9]} 35. Rb5 {[%clk 0:01:24.7]} 35... g4 {[%clk 0:00:30.3]}
36. a5 {[%clk 0:01:21]} 36... Re2+ {[%clk 0:00:28.6]} 37. Kf1 {[%clk 0:01:20.4]}
37... Re3 {[%clk 0:00:27.7]} 38. a6 {[%clk 0:01:14.5]} 1-0

[Event "Late-Titled-Tuesday-Blitz-April-23-2024"]
[Site "Chess.com"]
[Date "2024.04.23"]
[Round "4"]
[White "crushernt"]
[Black "Good_Knight_Kiss"]
[Result "0-1"]
[WhiteElo "2112"]
[BlackElo "2455"]
[TimeControl "180+1"]
[EndTime "14:39:15 PDT"]
[Termination "Good_Knight_Kiss won by resignation"]

1. e4 {[%clk 0:03:00.9]} 1... c5 {[%clk 0:02:59.6]} 2. Nf3 {[%clk 0:03:00.9]}
2... d6 {[%clk 0:02:59.9]} 3. d4 {[%clk 0:03:01.3]} 3... cxd4 {[%clk 0:03:00.8]}
4. Nxd4 {[%clk 0:03:01.4]} 4... Nf6 {[%clk 0:02:59.4]} 5. Nc3 {[%clk 0:03:01.9]}
5... a6 {[%clk 0:02:59]} 6. h3 {[%clk 0:03:01.9]} 6... e6 {[%clk 0:02:58.5]} 7.
g4 {[%clk 0:03:00.4]} 7... d5 {[%clk 0:02:58.9]} 8. exd5 {[%clk 0:02:35.7]} 8...
Nxd5 {[%clk 0:02:59.8]} 9. Nde2 {[%clk 0:02:32.8]} 9... Bb4 {[%clk 0:02:53.5]}
10. Bg2 {[%clk 0:02:18.1]} 10... O-O {[%clk 0:02:52.6]} 11. O-O {[%clk
0:02:17.7]} 11... Nxc3 {[%clk 0:02:52.4]} 12. Nxc3 {[%clk 0:02:12.1]} 12... Qc7
{[%clk 0:02:50.9]} 13. Qd4 {[%clk 0:02:07.1]} 13... Bd6 {[%clk 0:02:38.8]} 14.
Be3 {[%clk 0:01:48.5]} 14... Nc6 {[%clk 0:02:23.6]} 15. Qc4 {[%clk 0:01:37.1]}
15... Bd7 {[%clk 0:02:20.8]} 16. Rad1 {[%clk 0:01:33.4]} 16... b5 {[%clk
0:01:48.1]} 17. Qd3 {[%clk 0:01:09.5]} 17... Bh2+ {[%clk 0:01:47.9]} 18. Kh1
{[%clk 0:01:08.6]} 18... Rad8 {[%clk 0:01:41.4]} 19. Qe4 {[%clk 0:00:57.9]}
19... f5 {[%clk 0:01:21.2]} 20. Rxd7 {[%clk 0:00:44.6]} 20... fxe4 {[%clk
0:01:20.8]} 21. Rxc7 {[%clk 0:00:44.1]} 21... Bxc7 {[%clk 0:01:21.7]} 22. Bxe4
{[%clk 0:00:41.9]} 22... Ne5 {[%clk 0:01:03.9]} 23. b3 {[%clk 0:00:37.9]} 23...
Ba5 {[%clk 0:00:51.6]} 24. Ne2 {[%clk 0:00:31.1]} 24... Bd2 {[%clk 0:00:38.6]}
25. Bg5 {[%clk 0:00:23.6]} 25... Bxg5 {[%clk 0:00:37.5]} 0-1

[Event "Late-Titled-Tuesday-Blitz-April-23-2024"]
[Site "Chess.com"]
[Date "2024.04.23"]
[Round "4"]
[White "Brahianzevich"]
[Black "Airquake"]
[Result "1-0"]
[WhiteElo "2483"]
[BlackElo "2653"]
[TimeControl "180+1"]
[EndTime "14:39:16 PDT"]
[Termination "Brahianzevich won by resignation"]

1. e4 {[%clk 0:02:59.5]} 1... c5 {[%clk 0:02:57.1]} 2. Nf3 {[%clk 0:02:59.9]}
2... d6 {[%clk 0:02:56.3]} 3. d4 {[%clk 0:03:00]} 3... cxd4 {[%clk 0:02:57.2]}
4. Nxd4 {[%clk 0:03:00.8]} 4... Nf6 {[%clk 0:02:57.6]} 5. Nc3 {[%clk 0:03:01.3]}
5... a6 {[%clk 0:02:58]} 6. Bg5 {[%clk 0:03:01.1]} 6... e6 {[%clk 0:02:57]} 7.
f4 {[%clk 0:03:00.7]} 7... Qb6 {[%clk 0:02:57.6]} 8. Nb3 {[%clk 0:02:49.5]} 8...
h6 {[%clk 0:02:56.7]} 9. Bxf6 {[%clk 0:02:48.1]} 9... gxf6 {[%clk 0:02:56.3]}
10. Qf3 {[%clk 0:02:36.7]} 10... Qc7 {[%clk 0:02:54.3]} 11. O-O-O {[%clk
0:02:36.6]} 11... b5 {[%clk 0:02:53.8]} 12. f5 {[%clk 0:02:32.1]} 12... Nc6
{[%clk 0:02:26.2]} 13. fxe6 {[%clk 0:02:26.4]} 13... fxe6 {[%clk 0:02:19.8]} 14.
e5 {[%clk 0:02:17.4]} 14... fxe5 {[%clk 0:02:15.2]} 15. Ne4 {[%clk 0:02:10.5]}
15... Bb7 {[%clk 0:02:12]} 16. Nf6+ {[%clk 0:01:58.5]} 16... Kd8 {[%clk
0:02:10.9]} 17. Nc5 {[%clk 0:01:47.9]} 17... Kc8 {[%clk 0:01:46.9]} 18. Nxe6
{[%clk 0:01:28.7]} 18... Qf7 {[%clk 0:01:21]} 19. Qf5 {[%clk 0:00:59]} 19... Ne7
{[%clk 0:01:18.9]} 20. Rxd6 {[%clk 0:00:58.4]} 20... Bg7 {[%clk 0:00:59.7]} 21.
Qh3 {[%clk 0:00:14.6]} 21... Qxf6 {[%clk 0:00:54.2]} 22. Nxg7+ {[%clk
0:00:09.3]} 1-0

[Event "Late-Titled-Tuesday-Blitz-April-23-2024"]
[Site "Chess.com"]
[Date "2024.04.23"]
[Round "4"]
[White "chess_sharparchitect"]
[Black "elmusmolamas"]
[Result "0-1"]
[WhiteElo "2241"]
[BlackElo "2493"]
[TimeControl "180+1"]
[EndTime "14:39:17 PDT"]
[Termination "elmusmolamas won on time"]

1. c4 {[%clk 0:03:00.9]} 1... b6 {[%clk 0:02:58]} 2. Nc3 {[%clk 0:03:00.8]} 2...
Bb7 {[%clk 0:02:58.9]} 3. e4 {[%clk 0:03:01.3]} 3... c5 {[%clk 0:02:57]} 4. Nf3
{[%clk 0:03:00.9]} 4... e6 {[%clk 0:02:55.8]} 5. d4 {[%clk 0:03:01.3]} 5... cxd4
{[%clk 0:02:56.7]} 6. Nxd4 {[%clk 0:03:01.5]} 6... d6 {[%clk 0:02:50.8]} 7. Be2
{[%clk 0:02:51.2]} 7... Nf6 {[%clk 0:02:50.5]} 8. f3 {[%clk 0:02:48.5]} 8... Be7
{[%clk 0:02:51]} 9. Be3 {[%clk 0:02:48.1]} 9... O-O {[%clk 0:02:51.6]} 10. O-O
{[%clk 0:02:48.1]} 10... Nbd7 {[%clk 0:02:52.2]} 11. Qd2 {[%clk 0:02:47.3]}
11... a6 {[%clk 0:02:52.8]} 12. Rac1 {[%clk 0:02:43.8]} 12... Rc8 {[%clk
0:02:50.8]} 13. Rfd1 {[%clk 0:02:43.2]} 13... Rc7 {[%clk 0:02:50.4]} 14. b3
{[%clk 0:02:38.2]} 14... Qa8 {[%clk 0:02:50.7]} 15. Bf1 {[%clk 0:02:35.8]} 15...
Rfc8 {[%clk 0:02:49.6]} 16. Qf2 {[%clk 0:02:27.1]} 16... Bf8 {[%clk 0:02:46.1]}
17. Qg3 {[%clk 0:02:09.4]} 17... Kh8 {[%clk 0:02:44.6]} 18. Qf2 {[%clk
0:02:04.7]} 18... b5 {[%clk 0:02:37.9]} 19. h3 {[%clk 0:01:55.2]} 19... Ne5
{[%clk 0:02:36.8]} 20. f4 {[%clk 0:01:14.9]} 20... Ned7 {[%clk 0:02:36.8]} 21.
e5 {[%clk 0:01:02.1]} 21... dxe5 {[%clk 0:02:34.6]} 22. fxe5 {[%clk 0:01:02.1]}
22... Nxe5 {[%clk 0:02:35.5]} 23. Bf4 {[%clk 0:01:00.3]} 23... Nfd7 {[%clk
0:02:27.1]} 24. Qg3 {[%clk 0:00:49]} 24... bxc4 {[%clk 0:02:21]} 25. Bxe5 {[%clk
0:00:46.1]} 25... Nxe5 {[%clk 0:02:21.9]} 26. Qxe5 {[%clk 0:00:45.4]} 26... cxb3
{[%clk 0:02:22.8]} 27. axb3 {[%clk 0:00:31.2]} 27... f6 {[%clk 0:02:05.7]} 28.
Qxe6 {[%clk 0:00:27.8]} 28... Rxc3 {[%clk 0:02:02.1]} 29. Rxc3 {[%clk
0:00:27.2]} 29... Rxc3 {[%clk 0:02:03]} 30. Bc4 {[%clk 0:00:24.6]} 30... Bc5
{[%clk 0:02:03]} 31. Kh2 {[%clk 0:00:20.8]} 31... Qb8+ {[%clk 0:02:00.1]} 32.
Kh1 {[%clk 0:00:19.4]} 32... Bxd4 {[%clk 0:01:51.9]} 33. Re1 {[%clk 0:00:06.8]}
33... Be5 {[%clk 0:01:38.5]} 34. Qf5 {[%clk 0:00:03.4]} 34... Rg3 {[%clk
0:01:32.3]} 35. Re2 {[%clk 0:00:01.7]} 35... Qa8 {[%clk 0:01:26.4]} 36. Qe6
{[%clk 0:00:01.1]} 36... Bxg2+ {[%clk 0:01:23.9]} 0-1

[Event "Late-Titled-Tuesday-Blitz-April-23-2024"]
[Site "Chess.com"]
[Date "2024.04.23"]
[Round "4"]
[White "AlexeiShirov"]
[Black "vi_pranav"]
[Result "1/2-1/2"]
[WhiteElo "2813"]
[BlackElo "3073"]
[TimeControl "180+1"]
[EndTime "14:39:20 PDT"]
[Termination "Game drawn by repetition"]

1. e4 {[%clk 0:03:00.9]} 1... e5 {[%clk 0:02:59.9]} 2. Nf3 {[%clk 0:03:00.3]}
2... Nc6 {[%clk 0:03:00.3]} 3. Bb5 {[%clk 0:02:59.8]} 3... a6 {[%clk 0:03:00.3]}
4. Ba4 {[%clk 0:02:59.7]} 4... Nge7 {[%clk 0:03:00.7]} 5. d4 {[%clk 0:02:58]}
5... exd4 {[%clk 0:02:56.1]} 6. Nxd4 {[%clk 0:02:56.6]} 6... Ng6 {[%clk
0:02:53.7]} 7. Nxc6 {[%clk 0:02:55]} 7... bxc6 {[%clk 0:02:52.2]} 8. O-O {[%clk
0:02:52.7]} 8... Bc5 {[%clk 0:02:52.2]} 9. Nd2 {[%clk 0:02:50.4]} 9... O-O
{[%clk 0:02:52.2]} 10. Kh1 {[%clk 0:02:47.3]} 10... Re8 {[%clk 0:02:36.6]} 11.
f4 {[%clk 0:02:46.3]} 11... Be3 {[%clk 0:02:36.6]} 12. f5 {[%clk 0:02:32.6]}
12... Ne5 {[%clk 0:02:34.7]} 13. Bb3 {[%clk 0:02:30.5]} 13... a5 {[%clk
0:02:29.6]} 14. Nf3 {[%clk 0:02:22.9]} 14... Bxc1 {[%clk 0:02:28.5]} 15. Nxe5
{[%clk 0:02:20.7]} 15... Rxe5 {[%clk 0:02:28.7]} 16. Rxc1 {[%clk 0:02:19.7]}
16... Rxe4 {[%clk 0:02:13.6]} 17. f6 {[%clk 0:02:17.8]} 17... d5 {[%clk
0:02:08.1]} 18. c4 {[%clk 0:02:15.9]} 18... Bg4 {[%clk 0:02:03.9]} 19. Qd2
{[%clk 0:02:14.1]} 19... dxc4 {[%clk 0:01:43.6]} 20. Qg5 {[%clk 0:02:11.1]}
20... g6 {[%clk 0:01:38.1]} 21. Rxc4 {[%clk 0:02:00.4]} 21... Qd3 {[%clk
0:01:12.5]} 22. Rg1 {[%clk 0:01:52.7]} 22... Kh8 {[%clk 0:00:51.1]} 23. Qh6
{[%clk 0:01:48.7]} 23... Rg8 {[%clk 0:00:46.4]} 24. Rxe4 {[%clk 0:01:47.6]}
24... Qxe4 {[%clk 0:00:47.3]} 25. Bxf7 {[%clk 0:01:45.9]} 25... Bf3 {[%clk
0:00:47.6]} 26. h4 {[%clk 0:00:52.7]} 26... Qf5 {[%clk 0:00:32]} 27. Kh2 {[%clk
0:00:41.3]} 27... Qe5+ {[%clk 0:00:30.7]} 28. Kh1 {[%clk 0:00:34.2]} 28... Qf5
{[%clk 0:00:30.7]} 29. Kh2 {[%clk 0:00:34.1]} 29... Qe5+ {[%clk 0:00:30.9]} 30.
Kh1 {[%clk 0:00:33]} 30... Qf5 {[%clk 0:00:30.9]} 1/2-1/2

[Event "Late-Titled-Tuesday-Blitz-April-23-2024"]
[Site "Chess.com"]
[Date "2024.04.23"]
[Round "4"]
[White "Evan_Attaker"]
[Black "platy3"]
[Result "1-0"]
[WhiteElo "2604"]
[BlackElo "2873"]
[TimeControl "180+1"]
[EndTime "14:39:25 PDT"]
[Termination "Evan_Attaker won by resignation"]

1. Nf3 {[%clk 0:03:00.9]} 1... Nf6 {[%clk 0:02:56.9]} 2. c4 {[%clk 0:03:00.7]}
2... e6 {[%clk 0:02:54.3]} 3. g3 {[%clk 0:03:00.4]} 3... a6 {[%clk 0:02:51.5]}
4. Bg2 {[%clk 0:02:58.3]} 4... b5 {[%clk 0:02:51.6]} 5. b3 {[%clk 0:02:50.7]}
5... Bb7 {[%clk 0:02:51.6]} 6. O-O {[%clk 0:02:50.5]} 6... Be7 {[%clk
0:02:51.4]} 7. Bb2 {[%clk 0:02:50.5]} 7... O-O {[%clk 0:02:51.3]} 8. d3 {[%clk
0:02:49.9]} 8... d6 {[%clk 0:02:46.1]} 9. Nc3 {[%clk 0:02:46.3]} 9... b4 {[%clk
0:02:45.8]} 10. Na4 {[%clk 0:02:43.7]} 10... a5 {[%clk 0:02:45]} 11. a3 {[%clk
0:02:40.4]} 11... Nbd7 {[%clk 0:02:42.7]} 12. Qd2 {[%clk 0:02:38.6]} 12... c5
{[%clk 0:02:42.2]} 13. Rfd1 {[%clk 0:02:34.3]} 13... Qc7 {[%clk 0:02:40.8]} 14.
d4 {[%clk 0:02:34.3]} 14... Bc6 {[%clk 0:02:37.4]} 15. dxc5 {[%clk 0:02:31.3]}
15... dxc5 {[%clk 0:02:33.9]} 16. Qe3 {[%clk 0:01:45.6]} 16... Rad8 {[%clk
0:02:25.5]} 17. axb4 {[%clk 0:01:44.2]} 17... cxb4 {[%clk 0:02:20.8]} 18. Nd4
{[%clk 0:01:39.6]} 18... Bxg2 {[%clk 0:02:18.9]} 19. Kxg2 {[%clk 0:01:40.5]}
19... Nc5 {[%clk 0:02:19.2]} 20. Nxc5 {[%clk 0:01:33.9]} 20... Bxc5 {[%clk
0:02:17.5]} 21. Qf3 {[%clk 0:01:34.1]} 21... Bb6 {[%clk 0:00:51.2]} 22. Nb5
{[%clk 0:01:32.5]} 22... Qe7 {[%clk 0:00:51]} 23. Be5 {[%clk 0:01:30.5]} 23...
Rfe8 {[%clk 0:00:46.5]} 24. Bd6 {[%clk 0:01:23.6]} 24... Rxd6 {[%clk 0:00:30.2]}
25. Nxd6 {[%clk 0:01:13.3]} 25... Rb8 {[%clk 0:00:30]} 26. Qc6 {[%clk
0:01:08.7]} 26... Qc7 {[%clk 0:00:21.3]} 27. Qxc7 {[%clk 0:01:08]} 27... Bxc7
{[%clk 0:00:22.2]} 28. Nb5 {[%clk 0:01:05.3]} 28... Bb6 {[%clk 0:00:22.5]} 29.
f3 {[%clk 0:01:03.4]} 29... Kf8 {[%clk 0:00:21.8]} 30. Rd6 {[%clk 0:00:56.2]}
30... Ke7 {[%clk 0:00:21.3]} 31. Rad1 {[%clk 0:00:55.6]} 31... Nd5 {[%clk
0:00:13]} 32. cxd5 {[%clk 0:00:54]} 1-0

[Event "Late-Titled-Tuesday-Blitz-April-23-2024"]
[Site "Chess.com"]
[Date "2024.04.23"]
[Round "4"]
[White "IngOscarArdila"]
[Black "zverr1"]
[Result "0-1"]
[WhiteElo "2263"]
[BlackElo "2448"]
[TimeControl "180+1"]
[EndTime "14:39:26 PDT"]
[Termination "zverr1 won by checkmate"]

1. d4 {[%clk 0:02:54.8]} 1... g6 {[%clk 0:03:00]} 2. Nf3 {[%clk 0:02:53.2]} 2...
Bg7 {[%clk 0:03:00.9]} 3. e3 {[%clk 0:02:53.2]} 3... d6 {[%clk 0:02:57.6]} 4.
Be2 {[%clk 0:02:53.5]} 4... Nd7 {[%clk 0:02:57.6]} 5. O-O {[%clk 0:02:52.9]}
5... e5 {[%clk 0:02:57.8]} 6. c4 {[%clk 0:02:51.6]} 6... Ne7 {[%clk 0:02:57.2]}
7. Nbd2 {[%clk 0:02:51]} 7... O-O {[%clk 0:02:54]} 8. Qc2 {[%clk 0:02:51]} 8...
a5 {[%clk 0:02:47]} 9. Rd1 {[%clk 0:02:50.6]} 9... Nc6 {[%clk 0:02:45.6]} 10.
dxe5 {[%clk 0:02:49.1]} 10... dxe5 {[%clk 0:02:40.6]} 11. Nf1 {[%clk 0:02:34.4]}
11... Qe7 {[%clk 0:02:40.6]} 12. Bd2 {[%clk 0:02:29.8]} 12... Nc5 {[%clk
0:02:31.7]} 13. Ng3 {[%clk 0:02:25.6]} 13... h5 {[%clk 0:02:25.6]} 14. h4 {[%clk
0:02:17.4]} 14... Bd7 {[%clk 0:01:49.7]} 15. Bc3 {[%clk 0:02:17.1]} 15... Rae8
{[%clk 0:01:45]} 16. b3 {[%clk 0:02:08.6]} 16... Nb4 {[%clk 0:01:40.9]} 17. Qb2
{[%clk 0:02:05]} 17... f6 {[%clk 0:01:29.7]} 18. a3 {[%clk 0:02:02.7]} 18... Nc6
{[%clk 0:01:27.6]} 19. Qc2 {[%clk 0:02:01.3]} 19... e4 {[%clk 0:01:14.8]} 20.
Nd4 {[%clk 0:01:58.1]} 20... f5 {[%clk 0:01:00.7]} 21. Nxc6 {[%clk 0:01:50.3]}
21... Bxc6 {[%clk 0:01:01.6]} 22. Bxg7 {[%clk 0:01:48.4]} 22... Qxg7 {[%clk
0:00:59.8]} 23. b4 {[%clk 0:01:48.1]} 23... Ba4 {[%clk 0:00:56.2]} 24. Qd2
{[%clk 0:01:22.5]} 24... Bxd1 {[%clk 0:00:52.2]} 25. Rxd1 {[%clk 0:01:00.2]}
25... axb4 {[%clk 0:00:51.6]} 26. axb4 {[%clk 0:00:56.2]} 26... Ne6 {[%clk
0:00:50.1]} 27. c5 {[%clk 0:00:52.2]} 27... Rd8 {[%clk 0:00:49.8]} 28. Qa2
{[%clk 0:00:47]} 28... Qe5 {[%clk 0:00:32.7]} 29. Rxd8 {[%clk 0:00:43.5]} 29...
Rxd8 {[%clk 0:00:33.6]} 30. Bc4 {[%clk 0:00:43.7]} 30... Kf7 {[%clk 0:00:33.7]}
31. Ne2 {[%clk 0:00:42.1]} 31... Rd1# {[%clk 0:00:29.4]} 0-1

[Event "Late-Titled-Tuesday-Blitz-April-23-2024"]
[Site "Chess.com"]
[Date "2024.04.23"]
[Round "4"]
[White "TheSilmarils"]
[Black "albi1999"]
[Result "1-0"]
[WhiteElo "2973"]
[BlackElo "2667"]
[TimeControl "180+1"]
[EndTime "14:39:28 PDT"]
[Termination "TheSilmarils won by resignation"]

1. Nf3 {[%clk 0:03:00.9]} 1... d5 {[%clk 0:02:59.2]} 2. e3 {[%clk 0:02:59.3]}
2... Nf6 {[%clk 0:02:57.3]} 3. c4 {[%clk 0:02:59]} 3... e6 {[%clk 0:02:57.7]} 4.
b3 {[%clk 0:02:58.3]} 4... g6 {[%clk 0:02:57.4]} 5. Bb2 {[%clk 0:02:56.9]} 5...
Bg7 {[%clk 0:02:57.5]} 6. g3 {[%clk 0:02:43.6]} 6... O-O {[%clk 0:02:57.2]} 7.
Bg2 {[%clk 0:02:44]} 7... c5 {[%clk 0:02:49.6]} 8. cxd5 {[%clk 0:02:40.1]} 8...
exd5 {[%clk 0:02:31.5]} 9. O-O {[%clk 0:02:36.9]} 9... Nc6 {[%clk 0:02:31.4]}
10. Ne5 {[%clk 0:02:19.8]} 10... Nxe5 {[%clk 0:02:17.8]} 11. Bxe5 {[%clk
0:02:20.7]} 11... Be6 {[%clk 0:02:18]} 12. d4 {[%clk 0:02:16]} 12... Qe7 {[%clk
0:02:04.1]} 13. dxc5 {[%clk 0:02:07.2]} 13... Qxc5 {[%clk 0:01:59.8]} 14. Bd4
{[%clk 0:01:51.3]} 14... Qa5 {[%clk 0:01:55.1]} 15. Nc3 {[%clk 0:01:48.4]} 15...
Rac8 {[%clk 0:01:54.4]} 16. Rc1 {[%clk 0:01:46.3]} 16... Rfd8 {[%clk 0:01:31.3]}
17. Qd2 {[%clk 0:01:27.3]} 17... Rc6 {[%clk 0:01:26.7]} 18. Qb2 {[%clk
0:01:07.9]} 18... Rdc8 {[%clk 0:01:15.3]} 19. Ne2 {[%clk 0:00:59.2]} 19... Rxc1
{[%clk 0:01:11.1]} 20. Nxc1 {[%clk 0:00:59.4]} 20... Ne8 {[%clk 0:01:08.3]} 21.
Ne2 {[%clk 0:00:56.5]} 21... Bf8 {[%clk 0:00:59.3]} 22. Nf4 {[%clk 0:00:54.4]}
22... Qa3 {[%clk 0:00:54.4]} 23. Qe2 {[%clk 0:00:37.8]} 23... Qd6 {[%clk
0:00:49.4]} 24. Rd1 {[%clk 0:00:35.8]} 24... a6 {[%clk 0:00:42.4]} 25. Ba1
{[%clk 0:00:35.7]} 25... Rc5 {[%clk 0:00:36.3]} 26. e4 {[%clk 0:00:34.1]} 26...
d4 {[%clk 0:00:30.5]} 27. Bxd4 {[%clk 0:00:31]} 27... Ra5 {[%clk 0:00:27.3]} 28.
Bc3 {[%clk 0:00:25.9]} 1-0

[Event "Late-Titled-Tuesday-Blitz-April-23-2024"]
[Site "Chess.com"]
[Date "2024.04.23"]
[Round "4"]
[White "Mischuk_D"]
[Black "B_nn_t"]
[Result "1-0"]
[WhiteElo "2771"]
[BlackElo "2557"]
[TimeControl "180+1"]
[EndTime "14:39:32 PDT"]
[Termination "Mischuk_D won by resignation"]

1. d4 {[%clk 0:03:00.9]} 1... Nf6 {[%clk 0:03:00]} 2. c4 {[%clk 0:03:01]} 2...
e6 {[%clk 0:03:00.3]} 3. Nf3 {[%clk 0:03:00]} 3... d5 {[%clk 0:03:00.1]} 4. g3
{[%clk 0:03:00.2]} 4... dxc4 {[%clk 0:02:59.6]} 5. Bg2 {[%clk 0:02:59.8]} 5...
c6 {[%clk 0:03:00.1]} 6. O-O {[%clk 0:02:54.3]} 6... b5 {[%clk 0:03:00]} 7. b3
{[%clk 0:02:49.2]} 7... cxb3 {[%clk 0:02:59.3]} 8. Qxb3 {[%clk 0:02:49.5]} 8...
Bb7 {[%clk 0:02:57.1]} 9. a4 {[%clk 0:02:49.4]} 9... a6 {[%clk 0:02:57.3]} 10.
Bb2 {[%clk 0:02:34.5]} 10... b4 {[%clk 0:02:53.3]} 11. Rc1 {[%clk 0:02:34.6]}
11... a5 {[%clk 0:02:52.5]} 12. Nbd2 {[%clk 0:02:32.6]} 12... Be7 {[%clk
0:02:47]} 13. Ne5 {[%clk 0:02:29.2]} 13... O-O {[%clk 0:02:46.6]} 14. e3 {[%clk
0:02:22.8]} 14... Nd5 {[%clk 0:02:40.3]} 15. Rc2 {[%clk 0:02:21.6]} 15... Bf6
{[%clk 0:02:32.3]} 16. Nd3 {[%clk 0:02:20.9]} 16... Nd7 {[%clk 0:02:28.3]} 17.
Rac1 {[%clk 0:02:18.3]} 17... Rc8 {[%clk 0:02:22.9]} 18. Ne4 {[%clk 0:02:18.3]}
18... Be7 {[%clk 0:02:22.5]} 19. Nec5 {[%clk 0:02:18.3]} 19... Nxc5 {[%clk
0:02:22.3]} 20. Nxc5 {[%clk 0:02:17.6]} 20... Bxc5 {[%clk 0:02:19.7]} 21. Rxc5
{[%clk 0:02:15.1]} 21... Nf6 {[%clk 0:02:14.6]} 22. h3 {[%clk 0:02:11.4]} 22...
Nd7 {[%clk 0:02:13.6]} 23. R5c2 {[%clk 0:02:10.7]} 23... Qb6 {[%clk 0:02:10.7]}
24. Qd3 {[%clk 0:01:36.1]} 24... Rfd8 {[%clk 0:01:51.6]} 25. Qe4 {[%clk
0:01:35.6]} 25... Nf6 {[%clk 0:01:47.1]} 26. Qe5 {[%clk 0:01:30.5]} 26... Nd7
{[%clk 0:01:43.1]} 27. Qf4 {[%clk 0:01:29.7]} 27... Nf6 {[%clk 0:01:26.5]} 28.
g4 {[%clk 0:01:26]} 28... Nd5 {[%clk 0:01:23.1]} 29. Qe5 {[%clk 0:01:25.3]}
29... Qc7 {[%clk 0:01:19.1]} 30. Qxc7 {[%clk 0:01:23.7]} 30... Rxc7 {[%clk
0:01:20]} 31. Rc5 {[%clk 0:01:23.9]} 31... Ra8 {[%clk 0:01:17.1]} 32. Bxd5
{[%clk 0:01:20.6]} 32... exd5 {[%clk 0:01:18]} 33. Rxd5 {[%clk 0:01:21.1]} 33...
cxd5 {[%clk 0:01:12.8]} 34. Rxc7 {[%clk 0:01:21.7]} 34... Ba6 {[%clk 0:01:12.3]}
35. Rc5 {[%clk 0:01:21.2]} 35... Bc4 {[%clk 0:01:12.4]} 36. e4 {[%clk
0:01:21.2]} 36... Bb3 {[%clk 0:01:09.7]} 37. exd5 {[%clk 0:01:21.2]} 37... Bxa4
{[%clk 0:01:10.2]} 38. d6 {[%clk 0:01:21.9]} 38... Kf8 {[%clk 0:01:02.7]} 39.
Rc7 {[%clk 0:01:21.5]} 39... Bb5 {[%clk 0:00:55.5]} 40. d5 {[%clk 0:01:17.4]}
40... a4 {[%clk 0:00:54.2]} 41. Rb7 {[%clk 0:01:17.8]} 41... Be8 {[%clk
0:00:47.2]} 42. Rxb4 {[%clk 0:01:16.6]} 42... a3 {[%clk 0:00:47]} 43. Ba1 {[%clk
0:01:15.6]} 43... Rd8 {[%clk 0:00:45.2]} 44. Rb6 {[%clk 0:01:13]} 44... Rc8
{[%clk 0:00:44.3]} 45. Kg2 {[%clk 0:01:11.3]} 45... Rc1 {[%clk 0:00:43.5]} 46.
Bd4 {[%clk 0:01:08.1]} 46... Rd1 {[%clk 0:00:43.7]} 47. Bc5 {[%clk 0:01:07.9]}
1-0